fUSD/lending_fUSD_20250628
["ID","MTS","AMOUNT","RATE_DAILY","PERIOD"]
[368336087,1751127079828,-490.0,0.00032601,9]
[368336088,1751127079838,-490.0,0.00032601,9]
[368336089,1751127079848,-689.4,0.00032601,9]
[368336090,1751127079857,-490.0,0.00032601,9]
[368336091,1751127079867,-490.0,0.00032601,9]
[368336092,1751127079876,-490.0,0.00032601,9]
[368336093,1751127079885,-490.0,0.00032601,9]
[368336094,1751127079895,-490.0,0.00032601,9]
[368336095,1751127079904,-490.0,0.00032601,9]
[368336096,1751127079913,-490.0,0.00032601,9]
[368336097,1751127079922,-490.0,0.00032601,9]
[368336098,1751127079933,-490.0,0.00032601,9]
[368336099,1751127079943,-490.0,0.00032601,9]
[368336100,1751127079952,-490.0,0.00032601,9]
[368336101,1751127079961,-1176.69,0.00032601,9]
[368336102,1751127079971,-1075.47,0.00032601,9]
[368336103,1751127079981,-490.0,0.00032601,9]
[368336104,1751127079990,-158.53944797,0.00032601,9]
[368336105,1751127080000,-688.03,0.00032601,9]
[368336106,1751127080009,-208.14166502,0.00032601,9]
[368336107,1751127080019,-490.0,0.00032601,9]
[368336108,1751127080028,-490.0,0.00032601,9]
[368336109,1751127080038,-490.0,0.00032601,9]
[368336110,1751127080047,-529.89,0.00032601,9]
[368336111,1751127080057,-490.0,0.00032601,9]
[368336112,1751127080067,-490.0,0.00032601,9]
[368336113,1751127080077,-776.12,0.00032601,9]
[368336114,1751127080086,-490.0,0.00032601,9]
[368336115,1751127080096,-628.17380353,0.00032601,9]
[368336116,1751127080106,-274.43994275,0.00032601,9]
[368336117,1751127080116,-490.0,0.00032601,9]
[368336118,1751127080126,-1287.13,0.00032601,9]
[368336119,1751127080136,-490.0,0.00032601,9]
[368336120,1751127080146,-490.0,0.00032601,9]
[368336121,1751127080157,-490.0,0.00032601,9]
[368336122,1751127080167,-490.0,0.00032601,9]
[368336123,1751127080179,-490.0,0.00032601,9]
[368336124,1751127080189,-707.77,0.00032601,9]
[368336125,1751127080199,-519.0,0.00032601,9]
[368336126,1751127080209,-490.0,0.00032601,9]
[368336127,1751127080219,-490.0,0.00032601,9]
[368336128,1751127080229,-490.0,0.00032601,9]
[368336129,1751127080239,-490.0,0.00032601,9]
[368336130,1751127080249,-490.0,0.00032601,9]
[368336131,1751127080260,-490.0,0.00032601,9]
[368336132,1751127080269,-490.0,0.00032601,9]
[368336133,1751127080280,-490.0,0.00032601,9]
[368336134,1751127080290,-490.0,0.00032601,9]
[368336135,1751127080299,-2039.39,0.00032601,9]
[368336136,1751127080309,-543.97,0.00032601,9]
[368336137,1751127080319,-490.0,0.00032601,9]
[368336138,1751127080328,-490.0,0.00032601,9]
[368336139,1751127080338,-490.0,0.00032601,9]
[368336140,1751127080349,-1032.02,0.00032601,9]
[368336141,1751127080363,-435.87683213,0.00032601,9]
[368336142,1751127080373,-835.31,0.00032601,9]
[368336143,1751127080383,-500.0,0.00032601,9]
[368336144,1751127080393,-490.0,0.00032601,9]
[368336145,1751127080402,-955.27,0.00032601,9]
[368336146,1751127080412,-490.0,0.00032601,9]
[368336147,1751127080422,-490.0,0.00032601,9]
[368336148,1751127080433,-634.12,0.00032601,9]
[368336149,1751127080443,-1983.49,0.00032601,9]
[368336150,1751127080452,-490.0,0.00032601,9]
[368336151,1751127080462,-567.9,0.00032601,9]
[368336152,1751127080473,-490.0,0.00032601,9]
[368336153,1751127080482,-206.20237209,0.00032601,9]
[368336154,1751127080491,-490.0,0.00032601,9]
[368336155,1751127080501,-1131.2,0.00032601,9]
[368336156,1751127080511,-588.21225937,0.00032601,9]
[368336157,1751127080521,-348.28685889,0.00032601,9]
[368336158,1751127080532,-490.0,0.00032601,9]
[368336159,1751127080541,-490.0,0.00032601,9]
[368336160,1751127080552,-490.0,0.00032601,9]
[368336161,1751127080562,-490.0,0.00032601,9]
[368336162,1751127080571,-1007.05,0.00032601,9]
[368336163,1751127080581,-663.27,0.00032601,9]
[368336164,1751127080590,-1439.67,0.00032601,9]
[368336165,1751127080599,-490.0,0.00032601,9]
[368336166,1751127080608,-490.0,0.00032601,9]
[368336167,1751127080618,-490.0,0.00032601,9]
[368336168,1751127080627,-1982.75,0.00032601,9]
[368336169,1751127080637,-547.06079331,0.00032601,9]
[368336170,1751127080647,-1134.06,0.00032601,9]
[368336171,1751127080657,-611.28,0.00032601,9]
[368336172,1751127080667,-487.63177206,0.00032601,9]
[368336173,1751127080678,-1774.05,0.00032601,9]
[368336174,1751127080687,-1393.8,0.00032601,9]
[368336175,1751127080697,-720.46,0.00032601,9]
[368336176,1751127080707,-490.0,0.00032601,9]
[368336177,1751127080716,-490.0,0.00032601,9]
[368336178,1751127080725,-490.0,0.00032601,9]
[368336179,1751127080735,-490.0,0.00032601,9]
[368336180,1751127080745,-1542.14,0.00032601,9]
[368336181,1751127080755,-490.0,0.00032601,9]
[368336182,1751127080764,-490.0,0.00032601,9]
[368336183,1751127080774,-490.0,0.00032601,9]
[368336184,1751127080784,-490.0,0.00032601,9]
[368336185,1751127080793,-490.0,0.00032601,9]
[368336186,1751127080803,-490.0,0.00032601,9]
[368336187,1751127080812,-439.96524786,0.00032601,9]
[368336188,1751127080821,-490.0,0.00032601,9]
[368336189,1751127080830,-490.0,0.00032601,9]
[368336190,1751127080839,-490.0,0.00032601,9]
[368336191,1751127080849,-620.36,0.00032601,9]
[368336192,1751127080858,-560.69,0.00032601,9]
[368336193,1751127080867,-2456.76,0.00032601,9]
[368336194,1751127080877,-776.94,0.00032601,9]
[368336195,1751127080886,-182.05410151,0.00032601,9]
[368336196,1751127080896,-490.0,0.00032601,9]
[368336197,1751127080906,-558.12,0.00032601,9]
[368336198,1751127080915,-490.0,0.00032601,9]
[368336199,1751127080924,-1690.62,0.00032601,9]
[368336200,1751127080934,-1227.1,0.00032601,9]
[368336201,1751127080944,-490.0,0.00032601,9]
[368336202,1751127080953,-490.0,0.00032601,9]
[368336203,1751127080962,-509.26,0.00032601,9]
[368336204,1751127080972,-490.0,0.00032601,9]
[368336205,1751127080981,-2322.24,0.00032601,9]
[368336206,1751127080990,-490.0,0.00032601,9]
[368336207,1751127080999,-503.53,0.00032601,9]
[368336208,1751127081009,-1761.03,0.00032601,9]
[368336209,1751127081019,-1414.4,0.00032601,9]
[368336210,1751127081028,-552.95707978,0.00032601,9]
[368336211,1751127081038,-862.98,0.00032601,9]
[368336212,1751127081047,-490.0,0.00032601,9]
[368336213,1751127081056,-2730.6,0.00032601,9]
[368336214,1751127081066,-1553.67,0.00032601,9]
[368336215,1751127081076,-969.59,0.00032601,9]
[368336216,1751127081086,-490.0,0.00032601,9]
[368336217,1751127081095,-586.07,0.00032601,9]
[368336218,1751127081105,-490.0,0.00032601,9]
[368336219,1751127081114,-1069.27,0.00032601,9]
[368336220,1751127081124,-734.06,0.00032601,9]
[368336221,1751127081134,-1270.58,0.00032601,9]
[368336222,1751127081144,-490.0,0.00032601,9]
[368336223,1751127081153,-973.61,0.00032601,9]
[368336224,1751127081162,-490.0,0.00032601,9]
[368336225,1751127081172,-490.0,0.00032601,9]
[368336226,1751127081184,-490.0,0.00032601,9]
[368336227,1751127081194,-973.79,0.00032601,9]
[368336228,1751127081203,-532.27,0.00032601,9]
[368336229,1751127081213,-553.28353199,0.00032601,9]
[368336230,1751127081222,-490.0,0.00032601,9]
[368336231,1751127081232,-1403.31,0.00032601,9]
[368336232,1751127081242,-524.8,0.00032601,9]
[368336233,1751127081252,-490.0,0.00032601,9]
[368336234,1751127081262,-490.0,0.00032601,9]
[368336235,1751127081272,-566.4,0.00032601,9]
[368336236,1751127081281,-781.13,0.00032601,9]
[368336237,1751127081291,-1038.76,0.00032601,9]
[368336238,1751127081300,-490.0,0.00032601,9]
[368336239,1751127081311,-565.74,0.00032601,9]
[368336240,1751127081320,-490.0,0.00032601,9]
[368336241,1751127081330,-1376.27,0.00032601,9]
[368336242,1751127081339,-537.95,0.00032601,9]
[368336243,1751127081348,-538.92,0.00032601,9]
[368336244,1751127081358,-970.04,0.00032601,9]
[368336245,1751127081371,-904.08,0.00032601,9]
[368336246,1751127081381,-1123.45,0.00032601,9]
[368336247,1751127081390,-1014.34,0.00032601,9]
[368336248,1751127081400,-490.0,0.00032601,9]
[368336249,1751127081411,-490.0,0.00032601,9]
[368336250,1751127081421,-490.0,0.00032601,9]
[368336251,1751127081431,-806.78,0.00032601,9]
[368336252,1751127081440,-490.0,0.00032601,9]
[368336253,1751127081451,-1037.25,0.00032601,9]
[368336254,1751127081459,-884.11,0.00032601,9]
[368336255,1751127081469,-490.0,0.00032601,9]
[368336256,1751127081478,-490.0,0.00032601,9]
[368336257,1751127081488,-490.0,0.00032601,9]
[368336258,1751127081497,-490.0,0.00032601,9]
[368336259,1751127081506,-490.0,0.00032601,9]
[368336260,1751127081517,-663.58,0.00032601,9]
[368336261,1751127081527,-744.62,0.00032601,9]
[368336262,1751127081536,-856.54,0.00032601,9]
[368336263,1751127081546,-1654.81,0.00032601,9]
[368336264,1751127081556,-490.0,0.00032601,9]
[368336265,1751127081565,-763.15,0.00032601,9]
[368336266,1751127081574,-490.0,0.00032601,9]
[368336267,1751127081584,-1914.18,0.00032601,9]
[368336268,1751127081593,-300.0,0.00032602,9]
[368336269,1751127081603,-745.71,0.00032602,9]
[368336270,1751127081614,-490.0,0.00032602,9]
[368336271,1751127081624,-490.0,0.00032602,9]
[368336272,1751127081634,-490.0,0.00032602,9]
[368336273,1751127081644,-490.0,0.00032602,9]
[368336274,1751127081653,-490.0,0.00032602,9]
[368336275,1751127081663,-490.0,0.00032602,9]
[368336276,1751127081672,-490.0,0.00032602,9]
[368336277,1751127081682,-1229.39,0.00032602,9]
[368336278,1751127081691,-490.0,0.00032602,9]
[368336279,1751127081700,-479.0,0.00032602,9]
[368336280,1751127081709,-772.85,0.00032602,9]
[368336281,1751127081720,-493.93268213,0.00032602,9]
[368336282,1751127081728,-504.22,0.00032602,9]
[368336283,1751127081738,-490.0,0.00032602,9]
[368336284,1751127081749,-490.0,0.00032602,9]
[368336285,1751127081759,-490.0,0.00032602,9]
[368336286,1751127081769,-972.76,0.00032602,9]
[368336287,1751127081779,-887.64,0.00032602,9]
[368336288,1751127081792,-502.45034577,0.00032616,5]
[368336289,1751127081802,-160.7262034,0.00032628,5]
[368336290,1751127081813,-159.727904,0.00032628,2]
[368336291,1751127081822,-159.727904,0.00032628,5]
[368336292,1751127081832,-150.0,0.00032629,2]
[368336293,1751127081842,-500.0,0.0003263,5]
[368336294,1751127081853,-503.0941575,0.0003263,5]
[368336295,1751127081863,-503.32111198,0.0003263,5]
[368336296,1751127081872,-159.727904,0.0003263,5]
[368336297,1751127081882,-164.68692861,0.0003263,5]
[368336298,1751127081892,-195.6390158,0.0003263,2]
[368336299,1751127081901,-159.727904,0.0003263,2]
[368336300,1751127081910,-159.727904,0.0003263,5]
[368336301,1751127081924,-164.719401,0.0003263,2]
[368336302,1751127081935,-502.05506889,0.0003263,5]
[368336303,1751127081945,-323.00738861,0.0003263,5]
[368336304,1751127081954,-159.727904,0.0003263,2]
[368336305,1751127081964,-213.11956189,0.0003263,5]
[368336306,1751127081974,-159.727904,0.0003263,2]
[368336307,1751127081983,-159.727904,0.0003263,5]
[368336308,1751127081993,-159.727904,0.0003263,2]
[368336309,1751127082004,-159.727904,0.0003263,2]
[368336310,1751127082014,-319.81074351,0.0003263,5]
[368336311,1751127082023,-159.727904,0.0003263,5]
[368336312,1751127082032,-502.03835971,0.0003263,5]
[368336313,1751127082042,-159.727904,0.0003263,2]
[368336314,1751127082052,-159.727904,0.0003263,2]
[368336315,1751127082062,-391.40621714,0.0003263,5]
[368336316,1751127082072,-513.83225537,0.0003263,5]
[368336317,1751127082082,-159.727904,0.0003263,2]
[368336318,1751127082310,-1195.67569277,0.00032714,2]
[368336319,1751127082321,-1115.21,0.00032735,9]
[368336320,1751127082331,-3394.54,0.00032766,2]
[368336321,1751127082341,-168.0,0.0003277,2]
[368336322,1751127082350,-159.727904,0.00032773,5]
[368336323,1751127082360,-500.0,0.00032773,5]
[368336324,1751127082370,-500.0,0.00032773,5]
[368336325,1751127082379,-500.0,0.00032773,5]
[368336326,1751127082389,-500.56972055,0.00032773,5]
[368336327,1751127082399,-530.92748236,0.00032773,5]
[368336328,1751127082408,-500.77148074,0.00032773,5]
[368336329,1751127082418,-379.59481015,0.00032773,5]
[368336330,1751127082427,-500.80392218,0.00032773,5]
[368336331,1751127082439,-2000.0,0.00032797,5]
[368336332,1751127082449,-1000.0,0.00032797,5]
[368336333,1751127082459,-201.9624856,0.00032805,27]
[368336334,1751127082469,-490.0,0.0003284,9]
[368336335,1751127082478,-490.0,0.0003284,9]
[368336336,1751127082487,-500.0,0.0003284,9]
[368336337,1751127082497,-490.0,0.0003284,9]
[368336338,1751127082507,-490.0,0.0003284,9]
[368336339,1751127082516,-490.0,0.0003284,9]
[368336340,1751127082525,-490.0,0.0003284,9]
[368336341,1751127082535,-490.0,0.0003284,9]
[368336342,1751127082545,-490.0,0.0003284,9]
[368336343,1751127082555,-490.0,0.0003284,9]
[368336344,1751127082564,-490.0,0.0003284,9]
[368336345,1751127082579,-490.0,0.0003284,9]
[368336346,1751127082590,-490.0,0.0003284,9]
[368336347,1751127082600,-707.77,0.0003284,9]
[368336348,1751127082610,-1982.75,0.0003284,9]
[368336349,1751127082620,-500.0,0.0003284,9]
[368336350,1751127082630,-1000.0,0.00032864,9]
[368336351,1751127082640,-490.0,0.00032864,9]
[368336352,1751127082649,-490.0,0.00032864,9]
[368336353,1751127082659,-547.99,0.00032864,9]
[368336354,1751127082669,-490.0,0.00032864,9]
[368336355,1751127082679,-490.0,0.00032864,9]
[368336356,1751127082690,-740.17,0.00032864,9]
[368336357,1751127082699,-558.87,0.00032864,9]
[368336358,1751127082709,-803.17,0.00032864,9]
[368336359,1751127082718,-1019.29,0.00032864,9]
[368336360,1751127082728,-1175.88,0.00032864,9]
[368336361,1751127082737,-1149.58,0.00032864,9]
[368336362,1751127082747,-490.0,0.00032864,9]
[368336363,1751127082756,-2359.85,0.00032864,9]
[368336364,1751127082765,-536.0,0.00032864,9]
[368336365,1751127082775,-905.54,0.00032864,9]
[368336366,1751127082784,-1256.72,0.00032864,9]
[368336367,1751127082794,-520.09,0.00032864,9]
[368336368,1751127082803,-917.86,0.00032864,9]
[368336369,1751127082814,-523.33,0.00032864,9]
[368336370,1751127082823,-945.59,0.00032864,9]
[368336371,1751127082833,-1025.49,0.00032864,9]
[368336372,1751127082843,-490.0,0.00032864,9]
[368336373,1751127082852,-896.35,0.00032864,9]
[368336374,1751127082862,-579.65,0.00032865,9]
[368336375,1751127082871,-490.0,0.00032865,9]
[368336376,1751127082881,-490.0,0.00032865,9]
[368336377,1751127082891,-490.0,0.00032865,9]
[368336378,1751127082900,-490.0,0.00032865,9]
[368336379,1751127082910,-490.0,0.00032865,9]
[368336380,1751127082920,-490.0,0.00032865,9]
[368336381,1751127082931,-2521.53,0.00032865,9]
[368336382,1751127082941,-1502.17,0.00032865,9]
[368336383,1751127082951,-1007.242306,0.00032865,9]
[368336384,1751127082960,-4646.96,0.00032865,9]
[368336385,1751127082970,-1743.591254,0.00032865,9]
[368336386,1751127082980,-2711.24,0.00032865,9]
[368336387,1751127082989,-156.833633,0.00032865,9]
[368336388,1751127082999,-817.339594,0.00032865,9]
[368336389,1751127083009,-1104.91,0.00032865,9]
[368336390,1751127083019,-181.414053,0.00032865,9]
[368336391,1751127083028,-1694.66,0.00032865,9]
[368336392,1751127083038,-1258.13,0.00032865,9]
[368336393,1751127083048,-707.58,0.00032865,9]
[368336394,1751127083057,-638.59,0.00032865,9]
[368336395,1751127083068,-1388.25,0.00032865,9]
[368336396,1751127083078,-940.08,0.00032865,9]
[368336397,1751127083087,-4320.7,0.00032865,9]
[368336398,1751127083097,-1237.79,0.00032865,9]
[368336399,1751127083107,-1387.21,0.00032865,9]
[368336400,1751127083117,-490.0,0.00032865,9]
[368336401,1751127083127,-954.12,0.00032865,9]
[368336402,1751127083137,-813.75,0.00032865,9]
[368336403,1751127083146,-3596.5,0.00032865,9]
[368336404,1751127083157,-1282.84,0.00032865,9]
[368336405,1751127083169,-1123.66,0.00032865,9]
[368336406,1751127083179,-852.99,0.00032865,9]
[368336407,1751127083189,-490.0,0.00032865,9]
[368336408,1751127083198,-1115.21,0.00032874,9]
[368336409,1751127083208,-490.0,0.00032875,9]
[368336410,1751127083219,-299.51111585,0.00032875,9]
[368336411,1751127083229,-490.0,0.00032875,9]
[368336412,1751127083239,-490.0,0.00032875,9]
[368336413,1751127083250,-490.0,0.00032875,9]
[368336414,1751127083259,-490.0,0.00032875,9]
[368336415,1751127083269,-490.0,0.00032875,9]
[368336416,1751127083279,-490.0,0.00032875,9]
[368336417,1751127083288,-490.0,0.00032875,9]
[368336418,1751127083302,-490.0,0.00032875,9]
[368336419,1751127083312,-490.0,0.00032875,9]
[368336420,1751127083322,-739.08,0.00032875,9]
[368336421,1751127083332,-490.0,0.00032875,9]
[368336422,1751127083342,-490.0,0.00032875,9]
[368336423,1751127083351,-953.0,0.00032875,9]
[368336424,1751127083362,-490.0,0.00032875,9]
[368336425,1751127083373,-1866.06,0.00032875,9]
[368336426,1751127083382,-490.0,0.00032875,9]
[368336427,1751127083392,-222.04760787,0.00032875,9]
[368336428,1751127083401,-490.0,0.00032875,9]
[368336429,1751127083411,-944.26,0.00032875,9]
[368336430,1751127083421,-524.88358764,0.00032875,9]
[368336431,1751127083431,-490.0,0.00032875,9]
[368336432,1751127083440,-490.0,0.00032875,9]
[368336433,1751127083450,-490.0,0.00032875,9]
[368336434,1751127083460,-490.0,0.00032875,9]
[368336435,1751127083469,-490.0,0.00032875,9]
[368336436,1751127083479,-994.17,0.00032875,9]
[368336437,1751127083491,-490.0,0.00032875,9]
[368336438,1751127083500,-917.26,0.00032875,9]
[368336439,1751127083510,-490.0,0.00032875,9]
[368336440,1751127083523,-490.0,0.00032875,9]
[368336441,1751127083533,-253.35081299,0.00032875,9]
[368336442,1751127083542,-834.16,0.00032875,9]
[368336443,1751127083551,-490.0,0.00032875,9]
[368336444,1751127083561,-490.0,0.00032875,9]
[368336445,1751127083571,-490.0,0.00032875,9]
[368336446,1751127083580,-490.0,0.00032875,9]
[368336447,1751127083590,-490.0,0.00032875,9]
[368336448,1751127083599,-668.47,0.00032875,9]
[368336449,1751127083611,-490.0,0.00032875,9]
[368336450,1751127083622,-490.0,0.00032875,9]
[368336451,1751127083632,-490.0,0.00032875,9]
[368336452,1751127083641,-490.0,0.00032875,9]
[368336453,1751127083650,-573.62,0.00032875,9]
[368336454,1751127083661,-490.0,0.00032875,9]
[368336455,1751127083671,-490.0,0.00032875,9]
[368336456,1751127083680,-627.55,0.00032875,9]
[368336457,1751127083690,-490.0,0.00032875,9]
[368336458,1751127083700,-490.0,0.00032875,9]
[368336459,1751127083710,-595.52,0.00032875,9]
[368336460,1751127083720,-490.0,0.00032875,9]
[368336461,1751127083729,-490.0,0.00032875,9]
[368336462,1751127083738,-490.0,0.00032875,9]
[368336463,1751127083747,-490.0,0.00032875,9]
[368336464,1751127083757,-490.0,0.00032875,9]
[368336465,1751127083766,-490.0,0.00032875,9]
[368336466,1751127083777,-543.51,0.00032875,9]
[368336467,1751127083786,-490.0,0.00032875,9]
[368336468,1751127083795,-490.0,0.00032875,9]
[368336469,1751127083805,-490.0,0.00032875,9]
[368336470,1751127083815,-689.4,0.00032875,9]
[368336471,1751127083825,-500.0,0.00032875,9]
[368336472,1751127083836,-525.3364444,0.00032875,9]
[368336473,1751127083853,-490.0,0.00032875,9]
[368336474,1751127083863,-490.0,0.00032875,9]
[368336475,1751127083873,-490.0,0.00032875,9]
[368336476,1751127083883,-490.0,0.00032875,9]
[368336477,1751127083893,-490.0,0.00032875,9]
[368336478,1751127083903,-490.0,0.00032875,9]
[368336479,1751127083913,-490.0,0.00032875,9]
[368336480,1751127083923,-490.0,0.00032875,9]
[368336481,1751127083936,-490.0,0.00032875,9]
[368336482,1751127083947,-1176.69,0.00032875,9]
[368336483,1751127083958,-1075.47,0.00032875,9]
[368336484,1751127083969,-490.0,0.00032875,9]
[368336485,1751127083979,-688.03,0.00032875,9]
[368336486,1751127083989,-490.0,0.00032875,9]
[368336487,1751127083999,-490.0,0.00032875,9]
[368336488,1751127084009,-490.0,0.00032875,9]
[368336489,1751127084019,-529.89,0.00032875,9]
[368336490,1751127084028,-490.0,0.00032875,9]
[368336491,1751127084038,-490.0,0.00032875,9]
[368336492,1751127084048,-776.12,0.00032875,9]
[368336493,1751127084058,-536.64806331,0.00032875,9]
[368336494,1751127084067,-490.0,0.00032875,9]
[368336495,1751127084077,-1287.13,0.00032875,9]
[368336496,1751127084087,-510.0,0.00032875,9]
[368336497,1751127084097,-490.0,0.00032875,9]
[368336498,1751127084106,-490.0,0.00032875,9]
[368336499,1751127084116,-490.0,0.00032875,9]
[368336500,1751127084126,-490.0,0.00032875,9]
[368336501,1751127084135,-707.77,0.00032875,9]
[368336502,1751127084145,-519.0,0.00032875,9]
[368336503,1751127084154,-490.0,0.00032875,9]
[368336504,1751127084163,-490.0,0.00032875,9]
[368336505,1751127084173,-490.0,0.00032875,9]
[368336506,1751127084185,-490.0,0.00032875,9]
[368336507,1751127084194,-490.0,0.00032875,9]
[368336508,1751127084204,-499.13797743,0.00032875,9]
[368336509,1751127084214,-490.0,0.00032875,9]
[368336510,1751127084223,-490.0,0.00032875,9]
[368336511,1751127084233,-490.0,0.00032875,9]
[368336512,1751127084245,-2039.39,0.00032875,9]
[368336513,1751127084254,-543.97,0.00032875,9]
[368336514,1751127084264,-490.0,0.00032875,9]
[368336515,1751127084274,-490.0,0.00032875,9]
[368336516,1751127084284,-490.0,0.00032875,9]
[368336517,1751127084293,-1032.02,0.00032875,9]
[368336518,1751127084313,-835.31,0.00032875,9]
[368336519,1751127084323,-490.0,0.00032875,9]
[368336520,1751127084333,-955.27,0.00032875,9]
[368336521,1751127084343,-490.0,0.00032875,9]
[368336522,1751127084352,-490.0,0.00032875,9]
[368336523,1751127084364,-634.12,0.00032875,9]
[368336524,1751127084375,-1983.49,0.00032875,9]
[368336525,1751127084385,-490.0,0.00032875,9]
[368336526,1751127084394,-567.9,0.00032875,9]
[368336527,1751127084404,-490.0,0.00032875,9]
[368336528,1751127084413,-490.0,0.00032875,9]
[368336529,1751127084423,-1131.2,0.00032875,9]
[368336530,1751127084433,-490.0,0.00032875,9]
[368336531,1751127084444,-490.0,0.00032875,9]
[368336532,1751127084454,-490.0,0.00032875,9]
[368336533,1751127084464,-490.0,0.00032875,9]
[368336534,1751127084474,-1007.05,0.00032875,9]
[368336535,1751127084483,-663.27,0.00032875,9]
[368336536,1751127084493,-1439.67,0.00032875,9]
[368336537,1751127084504,-490.0,0.00032875,9]
[368336538,1751127084513,-490.0,0.00032875,9]
[368336539,1751127084525,-490.0,0.00032875,9]
[368336540,1751127084535,-1982.75,0.00032875,9]
[368336541,1751127084545,-1134.06,0.00032875,9]
[368336542,1751127084555,-611.28,0.00032875,9]
[368336543,1751127084564,-1774.05,0.00032875,9]
[368336544,1751127084574,-1393.8,0.00032875,9]
[368336545,1751127084584,-490.0,0.00032875,9]
[368336546,1751127084593,-720.46,0.00032875,9]
[368336547,1751127084603,-490.0,0.00032875,9]
[368336548,1751127084613,-490.0,0.00032875,9]
[368336549,1751127084622,-490.0,0.00032875,9]
[368336550,1751127084632,-1542.14,0.00032875,9]
[368336551,1751127084644,-490.0,0.00032875,9]
[368336552,1751127084654,-490.0,0.00032875,9]
[368336553,1751127084663,-490.0,0.00032875,9]
[368336554,1751127084673,-490.0,0.00032875,9]
[368336555,1751127084684,-490.0,0.00032875,9]
[368336556,1751127084694,-519.22674662,0.00032875,9]
[368336557,1751127084703,-490.0,0.00032875,9]
[368336558,1751127084713,-490.0,0.00032875,9]
[368336559,1751127084723,-620.36,0.00032875,9]
[368336560,1751127084732,-2456.76,0.00032875,9]
[368336561,1751127084742,-776.94,0.00032875,9]
[368336562,1751127084755,-490.0,0.00032875,9]
[368336563,1751127084765,-558.12,0.00032875,9]
[368336564,1751127084775,-150.23947861,0.00032875,9]
[368336565,1751127084784,-1690.62,0.00032875,9]
[368336566,1751127084794,-1227.1,0.00032875,9]
[368336567,1751127084804,-166.76094267,0.00032875,9]
[368336568,1751127084813,-206.50470695,0.00032875,9]
[368336569,1751127084823,-509.26,0.00032875,9]
[368336570,1751127084833,-490.0,0.00032875,9]
[368336571,1751127084843,-2322.24,0.00032875,9]
[368336572,1751127084853,-330.59323246,0.00032875,9]
[368336573,1751127084863,-503.53,0.00032875,9]
[368336574,1751127084872,-1761.03,0.00032875,9]
[368336575,1751127085172,-1414.4,0.00032875,9]
[368336576,1751127085184,-862.98,0.00032875,9]
[368336577,1751127085194,-490.0,0.00032875,9]
[368336578,1751127085203,-2730.6,0.00032875,9]
[368336579,1751127085213,-1553.67,0.00032875,9]
[368336580,1751127085222,-969.59,0.00032875,9]
[368336581,1751127085231,-490.0,0.00032875,9]
[368336582,1751127085241,-586.07,0.00032875,9]
[368336583,1751127085250,-490.0,0.00032875,9]
[368336584,1751127085260,-1069.27,0.00032875,9]
[368336585,1751127085269,-734.06,0.00032875,9]
[368336586,1751127085278,-1270.58,0.00032875,9]